bitfinex/quotes_SOLUSD_20250421
["timestamp","ask_amount","ask_price","bid_price","bid_amount"]
[1745197709362,18.73449526,141.23,141.19,106.511]
[1745197709656,18.73449526,141.24,141.19,106.511]
[1745197709866,18.73449526,141.24,141.19,125.24549526]
[1745197710071,18.73449526,141.25,141.2,18.73449526]
[1745197710650,18.73449526,141.25,141.19,125.24549526]
[1745197710850,26.0,141.29,141.19,125.24549526]
[1745197710851,18.73449526,141.23,141.19,106.511]
[1745197711050,18.73449526,141.22,141.19,106.511]
[1745197711252,18.73449526,141.21,141.19,80.511]
[1745197711770,18.73449526,141.22,141.19,80.511]
[1745197711967,18.73449526,141.2,141.17,26.0]
[1745197712166,18.73449526,141.19,141.18,16.96]
[1745197712570,18.73449526,141.19,141.15,259.6]
[1745197712765,18.73449526,141.16,141.15,259.6]
[1745197714876,1.5798,141.22,141.15,259.6]
[1745197715070,18.73449526,141.19,141.15,259.6]
[1745197715275,18.73449526,141.18,141.15,259.6]
[1745197715572,18.73449526,141.19,141.15,259.6]
[1745197716387,18.73449526,141.2,141.15,259.6]
[1745197716683,18.73449526,141.19,141.15,259.6]
[1745197716859,18.73449526,141.17,141.15,259.6]
[1745197717968,18.73449526,141.16,141.15,259.6]
[1745197718862,18.73449526,141.17,141.15,259.6]
[1745197719572,18.73449526,141.16,141.15,259.6]
[1745197719763,18.73449526,141.17,141.15,259.6]
[1745197720370,24.66794886,141.23,141.15,259.6]
[1745197720554,18.73449526,141.17,141.15,259.6]
[1745197720752,24.66794886,141.23,141.15,259.6]
[1745197720984,18.73449526,141.17,141.15,259.6]
[1745197721859,6.0183,141.23,141.15,259.6]
[1745197722065,18.73449526,141.21,141.15,358.84549526]
[1745197722478,18.73449526,141.2,141.15,358.84549526]
[1745197722988,44.64964886,141.25,141.15,340.111]
[1745197722989,18.73449526,141.17,141.15,340.111]
[1745197723281,18.73449526,141.17,141.15,259.6]
[1745197723482,18.73449526,141.18,141.15,259.6]
[1745197723664,18.64964886,141.22,141.15,259.6]
[1745197723862,18.73449526,141.18,141.15,259.6]
[1745197724363,18.73449526,141.17,141.15,259.6]
[1745197724559,18.73449526,141.18,141.15,259.6]
[1745197724974,18.73449526,141.17,141.15,259.6]
[1745197725172,18.73449526,141.16,141.15,259.6]
[1745197726295,37.38414412,141.16,141.15,16.96]
[1745197728262,18.73449526,141.16,141.15,16.96]
[1745197728466,18.73449526,141.18,141.15,16.96]
[1745197728786,18.73449526,141.19,141.15,16.96]
[1745197729273,18.73449526,141.18,141.15,16.96]
[1745197731484,18.73449526,141.17,141.15,16.96]
[1745197733400,6.65,141.22,141.15,16.96]
[1745197733688,18.73449526,141.18,141.15,16.96]
[1745197733887,18.73449526,141.17,141.15,16.96]
[1745197734475,18.73449526,141.16,141.15,16.96]
[1745197736779,18.73449526,141.2,141.15,16.96]
[1745197737087,18.73449526,141.17,141.15,16.96]
[1745197738295,18.73449526,141.16,141.15,16.96]
[1745197738687,18.73449526,141.17,141.15,16.96]
[1745197740872,18.73449526,141.16,141.15,16.96]
[1745197741499,18.73449526,141.17,141.15,16.96]
[1745197742173,1.5249,141.31,141.17,81.511]
[1745197742384,18.73449526,141.2,141.17,80.511]
[1745197742587,6.3218,141.26,141.18,61.43449526]
[1745197742776,18.73449526,141.26,141.2,18.73449526]
[1745197742972,18.73449526,141.24,141.18,61.43449526]
[1745197743177,18.73449526,141.23,141.18,42.7]
[1745197743375,18.73449526,141.23,141.15,24.73644886]
[1745197743376,18.73449526,141.19,141.15,26.0]
[1745197743603,18.73449526,141.19,141.16,16.7]
[1745197743975,18.73449526,141.18,141.16,16.7]
[1745197744196,18.73449526,141.17,141.16,16.7]
[1745197744380,18.73449526,141.18,141.16,16.7]
[1745197744577,6.3218,141.22,141.16,16.7]
[1745197744578,18.73449526,141.19,141.16,16.7]
[1745197744777,18.73449526,141.18,141.16,16.7]
[1745197744973,18.73449526,141.19,141.16,16.7]
[1745197745984,18.73449526,141.2,141.16,16.7]
[1745197746493,18.73449526,141.19,141.16,16.7]
[1745197746898,18.73449526,141.18,141.16,16.7]
[1745197748587,18.73449526,141.19,141.16,16.7]
[1745197749273,18.73449526,141.2,141.16,16.7]
[1745197749686,18.73449526,141.19,141.16,16.7]
[1745197752292,18.73449526,141.17,141.16,16.7]
[1745197752798,18.73449526,141.18,141.16,16.7]
[1745197752978,18.73449526,141.18,141.17,16.7]
[1745197754082,37.38414412,141.18,141.17,16.7]
[1745197754279,18.73449526,141.18,141.17,16.7]
[1745197756697,6.3218,141.22,141.17,16.7]
[1745197756901,18.73449526,141.18,141.17,16.7]
[1745197757784,18.64964886,141.21,141.17,16.7]
[1745197757977,18.73449526,141.18,141.17,16.7]
[1745197761391,11.75488895,141.18,141.17,16.7]
[1745197763107,30.40453781,141.18,141.17,16.7]
[1745197764793,37.48769406,141.18,141.17,16.7]
[1745197765592,44.64964886,141.14,141.13,0.03]
[1745197765795,56.40453781,141.14,141.13,0.03]
[1745197767101,90.79240147,141.14,141.13,0.03]
[1745197767285,63.38942676,141.13,141.12,0.03]
[1745197767811,63.38942676,141.13,141.1,1.1549845]
[1745197767812,26.0,141.11,141.1,1.1549845]
[1745197768111,37.75488895,141.11,141.1,1.1549845]
[1745197768711,11.75488895,141.11,141.1,1.1549845]
[1745197768886,11.75488895,141.13,141.1,1.1549845]
[1745197769086,11.75488895,141.12,141.1,1.1549845]
[1745197769700,11.75488895,141.11,141.1,1.1549845]
[1745197769897,26.0,141.14,141.1,1.1549845]
[1745197770104,11.75488895,141.11,141.1,1.1549845]
[1745197770709,11.75488895,141.12,141.1,1.1549845]
[1745197771089,11.75488895,141.11,141.1,1.1549845]
[1745197774816,30.40453781,141.11,141.1,1.1549845]
[1745197775018,11.75488895,141.1,141.09,16.73]
[1745197775315,18.64964886,141.13,141.09,16.73]
[1745197775496,11.75488895,141.12,141.09,16.73]
[1745197775695,11.75488895,141.11,141.09,16.73]
[1745197776009,11.75488895,141.1,141.09,16.73]
[1745197776194,11.75488895,141.11,141.09,16.73]
[1745197776390,11.75488895,141.13,141.09,16.73]
[1745197776595,11.75488895,141.12,141.09,16.73]
[1745197777010,6.0727,141.18,141.09,28.48488895]
[1745197777219,11.75488895,141.14,141.09,28.48488895]
[1745197777798,11.75488895,141.15,141.1,11.75488895]
[1745197778212,32.0727,141.18,141.11,11.75488895]
[1745197778404,11.75488895,141.17,141.11,11.75488895]
[1745197778717,11.75488895,141.17,141.11,92.26588895]
[1745197778919,89.0089,141.24,141.15,26.0]
[1745197779126,8.2089,141.24,141.16,259.44]
[1745197779427,11.75488895,141.19,141.16,259.44]
[1745197780020,11.75488895,141.18,141.16,242.74]
[1745197780323,11.75488895,141.18,141.17,16.7]
[1745197780712,18.64964886,141.23,141.17,16.7]
[1745197781008,11.75488895,141.18,141.16,242.74]
[1745197781218,11.75488895,141.2,141.17,16.7]
[1745197781525,18.64964886,141.23,141.17,16.7]
[1745197781728,11.75488895,141.19,141.17,16.7]
[1745197781896,11.75488895,141.21,141.17,16.7]
[1745197782222,11.75488895,141.22,141.17,16.7]
[1745197782418,11.75488895,141.22,141.17,28.45488895]
[1745197782607,11.75488895,141.21,141.17,16.7]
[1745197783116,11.75488895,141.19,141.18,16.7]
[1745197783299,0.063,141.24,141.18,16.7]
[1745197783497,26.063,141.24,141.18,16.7]
[1745197783710,11.75488895,141.21,141.18,16.7]
[1745197783913,11.75488895,141.22,141.18,16.7]
[1745197784322,11.75488895,141.23,141.18,16.7]
[1745197784499,11.75488895,141.23,141.18,97.211]
[1745197785623,11.75488895,141.22,141.16,341.29658895]
[1745197785821,11.75488895,141.22,141.17,28.45488895]
[1745197786126,11.81788895,141.24,141.17,16.7]
[1745197786316,0.063,141.24,141.17,97.211]
[1745197786508,0.063,141.24,141.21,11.75488895]
[1745197787109,0.063,141.24,141.22,11.75488895]
[1745197787318,0.063,141.24,141.23,28.45488895]
[1745197788014,0.063,141.24,141.23,108.96588895]
[1745197788207,0.063,141.24,141.23,110.62338895]
[1745197789210,0.063,141.24,141.23,129.27303781]
[1745197789502,0.063,141.24,141.23,135.64063781]
[1745197790605,0.063,141.24,141.23,116.99098895]
[1745197790807,0.063,141.24,141.23,97.211]
[1745197791007,0.063,141.24,141.22,26.0]
[1745197791224,0.063,141.24,141.23,16.7]
[1745197791707,11.81788895,141.24,141.23,16.7]
[1745197793412,18.85842178,141.24,141.23,16.7]
[1745197794503,0.063,141.24,141.23,16.7]
[1745197794728,18.85842178,141.24,141.23,16.7]
[1745197798324,0.063,141.24,141.23,16.7]
[1745197799120,18.85842178,141.24,141.23,16.7]
[1745197800319,0.063,141.24,141.23,16.7]
[1745197803538,18.85842178,141.24,141.23,259.22]
[1745197805038,18.85842178,141.24,141.23,259.2]
[1745197806339,25.02844886,141.23,141.15,80.511]
[1745197806549,18.79542178,141.16,141.13,242.52]
[1745197806729,18.79542178,141.14,141.13,16.68]
[1745197807035,37.44507064,141.14,141.13,16.68]
[1745197807242,63.32565608,141.14,141.13,16.68]
[1745197807424,44.5302343,141.14,141.13,16.68]
[1745197807822,44.64964886,141.1,141.09,16.71]
[1745197808042,63.44507064,141.1,141.09,16.71]
[1745197808335,18.64964886,141.09,141.07,242.55]
[1745197808516,37.44507064,141.08,141.07,242.55]
[1745197808722,37.44507064,141.08,141.07,0.03]
[1745197809456,44.79542178,141.08,141.07,0.03]
[1745197809944,18.64964886,141.14,141.07,0.03]
[1745197810123,18.79542178,141.09,141.07,0.03]
[1745197810628,18.79542178,141.1,141.07,0.03]
[1745197810946,18.79542178,141.12,141.07,0.03]
[1745197811435,18.79542178,141.11,141.07,0.03]
[1745197811616,18.79542178,141.08,141.07,0.03]
[1745197812239,44.79542178,141.08,141.07,0.03]
[1745197812430,63.44507064,141.08,141.07,0.03]
[1745197815652,44.79542178,141.08,141.07,0.03]
[1745197816239,63.44507064,141.08,141.07,0.03]
[1745197816435,44.79542178,141.08,141.07,0.03]
[1745197816735,18.79542178,141.08,141.07,0.03]
[1745197817149,63.44507064,141.08,141.07,0.03]
[1745197817333,18.79542178,141.08,141.07,0.03]
[1745197817926,26.0,141.1,141.07,0.03]
[1745197818129,18.79542178,141.08,141.07,0.03]
[1745197819454,11.7731057,141.08,141.07,0.03]
[1745197821059,37.7731057,141.12,141.07,0.03]
[1745197821230,11.7731057,141.08,141.07,0.03]
[1745197821664,11.7731057,141.09,141.07,0.03]
[1745197822250,11.7731057,141.1,141.07,0.03]
[1745197822453,11.7731057,141.09,141.07,0.03]
[1745197823041,11.7731057,141.08,141.07,0.03]
[1745197823349,37.8361057,141.14,141.07,11.8031057]
[1745197823537,26.063,141.14,141.07,80.541]
[1745197823737,11.7731057,141.12,141.07,92.3141057]
[1745197824166,11.7731057,141.11,141.07,80.541]
[1745197824550,11.7731057,141.1,141.07,80.541]
[1745197824960,11.7731057,141.09,141.07,0.03]
[1745197825752,11.7731057,141.08,141.07,0.03]
[1745197826078,11.7731057,141.09,141.07,0.03]
[1745197826262,11.7731057,141.1,141.07,0.03]
[1745197826445,30.42275456,141.12,141.07,0.03]
[1745197826639,11.7731057,141.08,141.07,0.03]
[1745197827438,30.42275456,141.08,141.07,0.03]
[1745197827733,26.0,141.06,141.05,16.68]
[1745197827934,26.0,141.03,141.01,16.73]
[1745197828165,11.7731057,141.02,141.01,16.73]
[1745197829267,18.85650452,141.02,141.01,16.73]
[1745197830364,26.0,141.05,141.01,16.73]
[1745197830563,18.85650452,141.03,141.01,16.73]
[1745197830862,18.85650452,141.02,141.01,16.73]
[1745197831441,37.50615338,141.02,141.01,16.73]
[1745197831757,18.85650452,141.02,141.01,16.73]
[1745197832146,18.85650452,141.02,141.01,0.03]
[1745197832843,18.64964886,141.01,141.0,16.73]
[1745197833163,37.50615338,141.01,141.0,0.03]
[1745197834162,44.64964886,140.99,140.98,259.3]
[1745197834378,63.50615338,140.99,140.95,0.03]
[1745197834543,18.85650452,140.96,140.95,0.03]
[1745197835659,63.45686902,140.96,140.95,0.03]
[1745197835970,26.0,140.93,140.92,0.03]
[1745197836191,18.85650452,140.93,140.92,0.03]
[1745197836373,18.85650452,140.94,140.92,0.03]
[1745197836549,18.85650452,140.93,140.92,0.03]
[1745197838176,37.50615338,140.93,140.92,0.03]
[1745197838353,18.85650452,140.93,140.92,0.03]
[1745197838981,26.0,140.95,140.92,0.03]
[1745197839157,18.85650452,140.93,140.92,0.03]
[1745197840253,25.9522258,140.93,140.92,0.03]
[1745197840457,18.85650452,140.93,140.92,0.03]
[1745197842259,44.60187466,140.93,140.92,0.03]
[1745197842460,6.0519,140.98,140.92,0.03]
[1745197842662,18.85650452,140.93,140.92,0.03]
[1745197843283,18.64964886,140.88,140.82,17.8749845]
[1745197843468,18.85650452,140.83,140.82,17.8749845]
[1745197843780,26.0,140.89,140.86,0.03]
[1745197844081,18.85650452,140.87,140.86,0.03]
[1745197844283,24.70154886,140.9,140.86,0.03]
[1745197844474,18.85650452,140.87,140.86,0.03]
[1745197844678,24.70154886,140.9,140.86,0.03]
[1745197844679,18.64964886,140.89,140.86,0.03]
[1745197844882,18.85650452,140.87,140.86,0.03]
[1745197845369,37.50615338,140.87,140.86,0.03]
[1745197845889,44.6048969,140.87,140.86,0.03]
[1745197846488,26.0,140.84,140.82,17.8749845]
[1745197846786,18.85650452,140.83,140.82,17.8749845]
[1745197847281,18.85650452,140.84,140.82,17.8749845]
[1745197847475,26.0,140.87,140.82,17.8749845]
[1745197847873,18.85650452,140.85,140.82,17.8749845]
[1745197848581,18.85650452,140.85,140.82,1.1549845]
[1745197848784,6.0519,140.94,140.84,18.85650452]
[1745197848987,18.85650452,140.91,140.86,18.85650452]
[1745197849287,18.85650452,140.92,140.87,18.85650452]
[1745197849488,18.85650452,140.92,140.88,16.72]
[1745197849665,18.85650452,140.95,140.89,18.85650452]
[1745197849979,18.85650452,140.95,140.9,35.57650452]
[1745197850185,18.85650452,140.94,140.9,16.72]
[1745197850379,18.85650452,140.94,140.91,16.72]
[1745197850687,26.0,140.97,140.91,16.72]
[1745197850989,18.85650452,140.96,140.91,23.2213]
[1745197851161,18.85650452,140.95,140.91,23.2213]
[1745197851362,18.85650452,140.94,140.91,16.72]
[1745197851668,18.85650452,140.96,140.91,16.72]
[1745197851983,18.85650452,141.0,140.94,18.85650452]
[1745197852173,8.67941745,141.06,140.94,18.85650452]
[1745197852369,26.0,141.01,140.95,18.85650452]
[1745197852560,1.5901,141.06,140.97,18.85650452]
[1745197852763,18.85650452,141.03,140.98,18.85650452]
[1745197852960,18.85650452,141.06,141.0,18.85650452]
[1745197853160,6.2595,141.08,141.01,16.72]
[1745197853161,18.85650452,141.05,141.01,16.72]
[1745197853782,18.85650452,141.06,141.01,16.72]
[1745197854276,18.85650452,141.05,141.01,16.72]
[1745197854592,18.91950452,141.08,141.02,18.85650452]
[1745197854998,18.85650452,141.07,141.01,35.57650452]
[1745197855289,18.85650452,141.06,141.01,16.72]
[1745197855594,0.063,141.08,141.04,18.85650452]
[1745197855895,0.063,141.08,141.01,16.72]
[1745197856078,0.063,141.08,141.05,18.85650452]
[1745197856277,0.063,141.08,141.06,16.72]
[1745197857180,0.063,141.08,141.06,35.57650452]
[1745197857384,0.063,141.08,141.07,18.85650452]
[1745197857580,0.063,141.08,141.06,16.72]
[1745197857969,18.85650452,141.07,141.06,16.72]
[1745197859181,0.063,141.08,141.06,16.72]
[1745197859491,18.85650452,141.07,141.0,243.12]
[1745197859702,26.063,141.08,141.0,243.12]
[1745197859703,18.85650452,141.01,141.0,243.12]
[1745197859873,18.85650452,141.01,141.0,259.82]
[1745197860072,26.0,141.05,141.0,259.82]
[1745197860296,18.85650452,141.01,141.0,259.82]
[1745197861695,18.85650452,141.01,140.91,80.511]
[1745197861696,18.64964886,141.0,140.96,16.7]
[1745197861894,18.85650452,140.97,140.96,16.7]
[1745197862086,6.1965,141.0,140.96,16.7]
[1745197862399,18.85650452,141.0,140.96,16.7]
[1745197862701,18.85650452,140.97,140.96,16.7]
[1745197864478,63.45636578,140.97,140.96,16.7]
[1745197865002,37.50615338,140.97,140.96,16.7]
[1745197865385,56.3626579,140.97,140.96,16.7]
[1745197865778,26.0,140.94,140.91,259.64]
[1745197866003,18.64964886,140.91,140.87,16.7]
[1745197866190,56.3626579,140.88,140.87,16.7]
[1745197866782,56.3626579,140.88,140.84,16.7]
[1745197866783,26.0,140.85,140.84,16.7]
[1745197866984,44.85650452,140.85,140.84,16.7]
[1745197867681,37.50615338,140.85,140.84,16.7]
[1745197868104,18.64964886,140.84,140.82,1.1549845]
[1745197868307,26.0,140.81,140.8,0.03]
[1745197868476,26.0,140.81,140.77,0.03]
[1745197868477,82.3626579,140.81,140.77,0.03]
[1745197868681,63.50615338,140.78,140.77,0.03]
[1745197868892,44.64964886,140.74,140.63,16.7]
[1745197869098,1.5769,140.79,140.64,18.85650452]
[1745197869393,18.85650452,140.75,140.67,26.0]
[1745197869595,26.0,140.77,140.69,18.85650452]
[1745197869799,18.85650452,140.76,140.7,16.7]
[1745197870004,18.85650452,140.75,140.7,16.7]
[1745197870213,26.0,140.83,140.7,16.7]
[1745197870382,26.0,140.8,140.72,18.85650452]
[1745197870695,18.85650452,140.78,140.72,18.85650452]
[1745197871096,26.0,140.8,140.72,18.85650452]
[1745197871504,18.85650452,140.78,140.72,18.85650452]
[1745197871801,26.0,140.8,140.72,18.85650452]
[1745197871802,18.85650452,140.77,140.72,18.85650452]
[1745197871987,18.85650452,140.78,140.72,18.85650452]
[1745197872381,18.85650452,140.76,140.71,18.85650452]
[1745197872608,18.64964886,140.79,140.71,18.85650452]
[1745197872788,18.85650452,140.77,140.71,18.85650452]
[1745197872982,18.85650452,140.77,140.7,16.7]
[1745197873184,26.0,140.8,140.72,18.85650452]
[1745197873500,18.85650452,140.76,140.71,18.85650452]
[1745197873903,1.5769,140.85,140.75,18.85650452]
[1745197874096,6.5779,140.86,140.77,18.85650452]
[1745197874403,8.1548,140.91,140.82,18.85650452]
[1745197874577,6.5779,140.91,140.83,35.57650452]
[1745197874782,18.85650452,140.88,140.83,16.72]
[1745197874979,32.5779,140.91,140.83,16.72]
[1745197874980,18.85650452,140.87,140.83,16.72]
[1745197875292,27.90522322,140.87,140.83,16.72]
[1745197875609,27.90522322,140.88,140.83,16.72]
[1745197875814,27.90522322,140.89,140.83,44.62522322]
[1745197876105,27.90522322,140.88,140.83,259.92]
[1745197876288,34.48312322,140.96,140.84,27.90522322]
[1745197876489,27.90522322,140.9,140.84,27.90522322]
[1745197876697,27.90522322,140.89,140.84,27.90522322]
[1745197876896,27.90522322,140.9,140.84,27.90522322]
[1745197877092,27.90522322,140.92,140.86,27.90522322]
[1745197877293,18.64964886,140.95,140.84,27.90522322]
[1745197877294,27.90522322,140.89,140.84,27.90522322]
[1745197877615,27.90522322,140.9,140.85,27.90522322]
[1745197877904,27.90522322,140.9,140.83,285.92]
[1745197878082,27.90522322,140.89,140.83,313.82522322]
[1745197878278,26.0,140.94,140.83,313.82522322]
[1745197878505,27.90522322,140.91,140.85,27.90522322]
[1745197878889,27.90522322,140.91,140.86,27.90522322]
[1745197879094,1.5769,140.97,140.89,27.90522322]
[1745197879296,27.90522322,140.95,140.9,16.72]
[1745197880005,18.64964886,140.96,140.9,16.72]
[1745197880194,27.90522322,140.95,140.9,16.72]
[1745197880402,27.90522322,140.94,140.9,16.72]
[1745197881616,18.64964886,140.96,140.9,16.72]
[1745197881806,0.063,140.97,140.9,16.72]
[1745197882108,27.90522322,140.91,140.9,16.72]
[1745197882297,27.90522322,140.92,140.9,16.72]
[1745197882483,46.55487208,140.96,140.9,16.72]
[1745197882484,18.64964886,140.95,140.9,16.72]
[1745197882687,27.90522322,140.92,140.9,16.72]
[1745197882896,46.55487208,140.91,140.83,243.2]
[1745197883097,27.90522322,140.87,140.84,16.72]
[1745197883301,27.90522322,140.89,140.84,16.72]
[1745197883504,27.90522322,140.88,140.84,16.72]
[1745197883898,26.0,140.91,140.84,16.72]
[1745197884099,27.90522322,140.88,140.84,16.72]
[1745197884625,27.90522322,140.85,140.84,16.72]
[1745197884997,46.55487208,140.85,140.84,16.72]
[1745197885397,27.90522322,140.85,140.84,16.72]
[1745197886610,46.55487208,140.85,140.84,16.72]
[1745197886817,46.55487208,140.85,140.76,80.511]
[1745197886818,18.64964886,140.84,140.79,16.72]
[1745197886998,27.90522322,140.8,140.79,16.72]
[1745197887917,55.81044644,140.8,140.79,16.72]
[1745197888109,27.90522322,140.8,140.79,16.72]
[1745197890415,55.81044644,140.8,140.79,16.72]
[1745197890794,55.81044644,140.8,140.76,16.72]
[1745197890991,27.90522322,140.77,140.76,16.72]
[1745197891195,24.88864886,140.81,140.76,16.72]
[1745197891416,18.64964886,140.84,140.76,16.72]
[1745197891609,27.90522322,140.81,140.76,44.62522322]
[1745197891825,26.0,140.85,140.77,16.72]
[1745197892123,27.90522322,140.81,140.77,16.72]
[1745197892314,27.90522322,140.83,140.77,44.62522322]
[1745197892899,27.90522322,140.84,140.78,27.90522322]
[1745197893301,27.90522322,140.86,140.8,27.90522322]
[1745197893510,27.90522322,140.85,140.8,27.90522322]
[1745197894100,27.90522322,140.85,140.79,27.90522322]
[1745197894422,27.90522322,140.83,140.77,70.62522322]
[1745197894631,27.90522322,140.82,140.77,42.72]
[1745197895324,27.90522322,140.83,140.77,70.62522322]
[1745197895515,27.90522322,140.83,140.78,27.90522322]
[1745197895715,46.55487208,140.88,140.78,27.90522322]
[1745197896022,27.90522322,140.83,140.78,27.90522322]
[1745197896246,27.90522322,140.82,140.77,42.72]
[1745197896415,53.65337946,140.88,140.77,16.72]
[1745197896416,27.90522322,140.81,140.77,16.72]
[1745197896925,27.90522322,140.83,140.77,44.62522322]
[1745197897742,27.90522322,140.84,140.78,27.90522322]
[1745197898441,27.90522322,140.84,140.79,27.90522322]
[1745197898742,27.90522322,140.85,140.79,80.511]
[1745197898944,27.90522322,140.84,140.79,80.511]
[1745197899313,18.64964886,140.89,140.8,18.89727577]
[1745197899519,18.89727577,140.85,140.8,18.89727577]
[1745197899718,18.89727577,140.86,140.8,18.89727577]
[1745197900236,18.89727577,140.87,140.81,18.89727577]
[1745197900545,18.89727577,140.87,140.82,35.61727577]
[1745197900736,18.89727577,140.86,140.82,16.72]
[1745197901034,18.89727577,140.84,140.82,16.72]
[1745197901838,18.89727577,140.83,140.82,16.72]
[1745197903029,37.54692463,140.83,140.82,16.72]
[1745197903318,18.64964886,140.82,140.77,16.72]
[1745197903519,18.89727577,140.78,140.77,16.72]
[1745197903718,18.89727577,140.79,140.77,16.72]
[1745197904353,18.89727577,140.78,140.77,16.72]
[1745197907057,7.7269,140.82,140.77,16.72]
[1745197907345,18.89727577,140.78,140.77,16.72]
[1745197907957,44.89727577,140.78,140.77,16.72]
[1745197908260,18.89727577,140.78,140.77,16.72]
[1745197912445,18.89727577,140.79,140.77,16.72]
[1745197912751,18.89727577,140.78,140.77,16.72]
[1745197913655,18.64964886,140.77,140.74,243.12]
[1745197913825,18.89727577,140.75,140.74,243.12]
[1745197915038,37.54692463,140.75,140.74,243.12]
[1745197915447,18.64964886,140.74,140.73,16.72]
[1745197915648,37.54692463,140.74,140.73,16.72]
[1745197915951,37.54692463,140.74,140.71,0.03]
[1745197916284,18.89727577,140.72,140.71,0.03]
[1745197917755,18.89727577,140.73,140.71,0.03]
[1745197917957,18.89727577,140.74,140.71,0.03]
[1745197918261,18.89727577,140.73,140.71,0.03]
[1745197918460,18.64964886,140.77,140.71,0.03]
[1745197918757,18.89727577,140.73,140.71,0.03]
[1745197919163,7.10339113,140.78,140.71,0.03]
[1745197919164,18.64964886,140.78,140.71,0.03]
[1745197919340,18.64964886,140.78,140.64,125.53302463]
[1745197919341,18.64964886,140.67,140.57,6.4177]
[1745197919531,18.89727577,140.63,140.57,25.31497577]
[1745197919734,18.89727577,140.65,140.57,6.4177]
[1745197920058,18.89727577,140.65,140.58,18.89727577]
[1745197920437,18.64964886,140.69,140.57,6.4177]
[1745197920643,18.89727577,140.64,140.57,6.4177]
[1745197920843,8.1079,140.73,140.62,18.89727577]
[1745197921053,18.89727577,140.69,140.63,16.72]
[1745197921247,63.54692463,140.72,140.63,16.72]
[1745197921455,18.89727577,140.67,140.63,16.72]
[1745197922060,18.89727577,140.64,140.63,16.72]
[1745197922740,18.64964886,140.68,140.63,16.72]
[1745197922943,18.89727577,140.64,140.63,16.72]
[1745197923155,18.89727577,140.72,140.63,16.72]
[1745197923356,18.89727577,140.68,140.64,16.72]
[1745197923537,18.89727577,140.69,140.64,16.72]
[1745197923745,18.89727577,140.7,140.64,16.72]
[1745197924164,8.1079,140.73,140.65,18.89727577]
[1745197924357,18.89727577,140.75,140.69,18.89727577]
[1745197924659,6.4013,140.78,140.66,32.5772]
[1745197924660,18.89727577,140.73,140.7,16.72]
[1745197924964,18.89727577,140.74,140.7,16.72]
[1745197925159,18.89727577,140.73,140.7,16.72]
[1745197925474,18.89727577,140.71,140.7,16.72]
[1745197925669,18.89727577,140.72,140.7,16.72]
[1745197925854,18.89727577,140.73,140.7,16.72]
[1745197926055,18.89727577,140.72,140.7,16.72]
[1745197926288,18.89727577,140.71,140.7,16.72]
[1745197927237,37.54692463,140.71,140.7,16.72]
[1745197927875,37.54692463,140.71,140.66,16.72]
[1745197928176,18.89727577,140.68,140.66,16.72]
[1745197928781,18.89727577,140.69,140.66,16.72]
[1745197929253,18.89727577,140.68,140.66,16.72]
[1745197929461,18.89727577,140.67,140.66,16.72]
[1745197929977,18.89727577,140.68,140.66,16.72]
[1745197930756,18.89727577,140.72,140.66,16.72]
[1745197930964,18.89727577,140.68,140.66,16.72]
[1745197931269,18.89727577,140.69,140.66,16.72]
[1745197931756,0.063,140.84,140.66,97.231]
[1745197931757,6.4013,140.78,140.66,97.231]
[1745197931947,18.64964886,140.77,140.67,18.89727577]
[1745197932146,18.89727577,140.71,140.66,97.231]
[1745197932342,18.64964886,140.77,140.66,116.12827577]
[1745197932542,18.89727577,140.73,140.67,18.89727577]
[1745197932758,18.64964886,140.77,140.66,97.231]
[1745197932961,18.89727577,140.72,140.66,116.12827577]